[Event "Titled Tuesday Blitz June 27 Late 2023"]
[White "Rangel, Daniel"]
[Black "Khripachenko, Alexander"]
[WhiteFideId "2124475"]
[BlackFideId "54184975"]
[WhiteElo "2426"]
[BlackElo "2756"]
[Result "0-1"]
[Round "1"]
[TimeControl "180+2"]
[Date "2023.06.27"]
[WhiteClock "0:00:04"]
[BlackClock "0:00:11"]
[Board "72"]

1. c4 {[%clk 0:03:00]}  e5 {[%clk 0:02:43]} 2. g3 {[%clk 0:03:01]}  Nf6 {[%clk 0:02:42]} 3. Bg2 {[%clk 0:03:01]}  c6 {[%clk 0:02:41]} 4. Nf3 {[%clk 0:03:00]}  e4 {[%clk 0:02:41]} 5. Nd4 {[%clk 0:03:01]}  d5 {[%clk 0:02:42]} 6. cxd5 {[%clk 0:03:02]}  Qxd5 {[%clk 0:02:42]} 7. Nc2 {[%clk 0:03:01]}  Be7 {[%clk 0:02:42]} 8. d3 {[%clk 0:02:59]}  Qe6 {[%clk 0:02:33]} 9. O-O {[%clk 0:02:55]}  O-O {[%clk 0:02:28]} 10. d4 {[%clk 0:02:47]}  Rd8 {[%clk 0:02:27]} 11. Nc3 {[%clk 0:02:46]}  c5 {[%clk 0:02:26]} 12. Bg5 {[%clk 0:02:38]}  cxd4 {[%clk 0:02:17]} 13. Nxd4 {[%clk 0:02:39]}  Qb6 {[%clk 0:02:18]} 14. Bxf6 {[%clk 0:02:35]}  Bxf6 {[%clk 0:02:17]} 15. e3 {[%clk 0:02:30]}  Bxd4 {[%clk 0:02:16]} 16. exd4 {[%clk 0:02:31]}  Rxd4 {[%clk 0:02:17]} 17. Qc2 {[%clk 0:02:26]}  f5 {[%clk 0:02:12]} 18. Nb5 {[%clk 0:02:03]}  Qxb5 {[%clk 0:01:09]} 19. Qxc8+ {[%clk 0:02:02]}  Kf7 {[%clk 0:01:10]} 20. Rac1 {[%clk 0:01:35]}  Nc6 {[%clk 0:00:43]} 21. Qxa8 {[%clk 0:01:09]}  Rd8 {[%clk 0:00:42]} 22. Qxd8 {[%clk 0:01:09]}  Nxd8 {[%clk 0:00:43]} 23. Rc7+ {[%clk 0:01:09]}  Kf6 {[%clk 0:00:35]} 24. Rd1 {[%clk 0:00:58]}  Ne6 {[%clk 0:00:35]} 25. Rc2 {[%clk 0:00:52]}  Qe5 {[%clk 0:00:30]} 26. Rcd2 {[%clk 0:00:44]}  e3 {[%clk 0:00:27]} 27. fxe3 {[%clk 0:00:45]}  Qxe3+ {[%clk 0:00:28]} 28. Kf1 {[%clk 0:00:22]}  h5 {[%clk 0:00:20]} 29. Re2 {[%clk 0:00:18]}  Qb6 {[%clk 0:00:18]} 30. Red2 {[%clk 0:00:10]}  h4 {[%clk 0:00:17]} 31. Rd6 {[%clk 0:00:10]}  Qb5+ {[%clk 0:00:17]} 32. Kg1 {[%clk 0:00:09]}  hxg3 {[%clk 0:00:18]} 33. hxg3 {[%clk 0:00:06]}  g6 {[%clk 0:00:17]} 34. Kh1 {[%clk 0:00:04]}  Ke7 {[%clk 0:00:12]} 35. R6d2 {[%clk 0:00:03]}  Qe5 {[%clk 0:00:09]} 36. Bf3 {[%clk 0:00:02]}  Kf6 {[%clk 0:00:06]} 37. Bxb7 {[%clk 0:00:03]}  Qxg3 {[%clk 0:00:05]} 38. Bg2 {[%clk 0:00:04]}  Qh4+ {[%clk 0:00:06]} 39. Kg1 {[%clk 0:00:04]}  Nf4 {[%clk 0:00:06]} 40. Rd6+ {[%clk 0:00:04]}  Kg5 {[%clk 0:00:07]} 41. R6d2 {[%clk 0:00:05]}  Qg3 {[%clk 0:00:07]} 42. Kf1 {[%clk 0:00:05]}  Qe3 {[%clk 0:00:07]} 43. b3 {[%clk 0:00:03]}  Nh5 {[%clk 0:00:07]} 44. Rf2 {[%clk 0:00:02]}  Ng3+ {[%clk 0:00:07]} 45. Kg1 {[%clk 0:00:02]}  f4 {[%clk 0:00:08]} 46. Rf1 {[%clk 0:00:03]}  Kh4 {[%clk 0:00:07]} 47. Kh2 {[%clk 0:00:02]}  g5 {[%clk 0:00:07]} 48. Rf3 {[%clk 0:00:02]}  Qe5 {[%clk 0:00:08]} 49. R1f2 {[%clk 0:00:02]}  Kh5 {[%clk 0:00:08]} 50. Kg1 {[%clk 0:00:03]}  Nf5 {[%clk 0:00:08]} 51. Kh2 {[%clk 0:00:04]}  Nh4 {[%clk 0:00:07]} 52. Rh3 {[%clk 0:00:03]}  f3+ {[%clk 0:00:08]} 53. Kg1 {[%clk 0:00:03]}  fxg2 {[%clk 0:00:08]} 54. Rxg2 {[%clk 0:00:03]}  Qe1+ {[%clk 0:00:08]} 55. Kh2 {[%clk 0:00:04]}  g4 {[%clk 0:00:09]} 56. Rhg3 {[%clk 0:00:04]}  Nxg2 {[%clk 0:00:08]} 57. Rxg2 {[%clk 0:00:04]}  Kh4 {[%clk 0:00:09]} 58. a4 {[%clk 0:00:03]}  g3+ {[%clk 0:00:09]} 59. Rxg3 {[%clk 0:00:03]}  Qxg3+ {[%clk 0:00:10]} 60. Kh1 {[%clk 0:00:04]}  Kh3 {[%clk 0:00:11]} 61. b4 {[%clk 0:00:04]}  Qg2# {[%clk 0:00:11]} 0-1


[Site "https://www.chess.com"]

[Event "Titled Tuesday Blitz June 27 Late 2023"]
[White "Karthik, Advaith"]
[Black "Nazari, Arad"]
[WhiteFideId "30946050"]
[BlackFideId "12577324"]
[WhiteElo "2423"]
[BlackElo "2754"]
[Result "1-0"]
[Round "1"]
[TimeControl "180+2"]
[Date "2023.06.27"]
[WhiteClock "0:00:55"]
[BlackClock "0:00:17"]
[Board "74"]

1. d4 {[%clk 0:02:53]}  Nf6 {[%clk 0:02:52]} 2. c4 {[%clk 0:02:53]}  g6 {[%clk 0:02:53]} 3. Nc3 {[%clk 0:02:53]}  d5 {[%clk 0:02:53]} 4. Nf3 {[%clk 0:02:53]}  Bg7 {[%clk 0:02:53]} 5. Bg5 {[%clk 0:02:53]}  Ne4 {[%clk 0:02:53]} 6. cxd5 {[%clk 0:02:53]}  Nxg5 {[%clk 0:02:53]} 7. Nxg5 {[%clk 0:02:53]}  e6 {[%clk 0:02:54]} 8. Qd2 {[%clk 0:02:53]}  exd5 {[%clk 0:02:53]} 9. Qe3+ {[%clk 0:02:53]}  Kf8 {[%clk 0:02:53]} 10. Qf4 {[%clk 0:02:54]}  Bf6 {[%clk 0:02:52]} 11. h4 {[%clk 0:02:54]}  h6 {[%clk 0:02:50]} 12. Nf3 {[%clk 0:02:54]}  Kg7 {[%clk 0:02:49]} 13. e3 {[%clk 0:02:54]}  Bf5 {[%clk 0:02:35]} 14. g4 {[%clk 0:02:51]}  Be6 {[%clk 0:02:23]} 15. Rg1 {[%clk 0:02:46]}  Nd7 {[%clk 0:02:09]} 16. Bd3 {[%clk 0:02:33]}  g5 {[%clk 0:02:07]} 17. Qg3 {[%clk 0:02:24]}  c5 {[%clk 0:02:07]} 18. Nb5 {[%clk 0:02:03]}  Qa5+ {[%clk 0:02:02]} 19. Nc3 {[%clk 0:01:53]}  Rac8 {[%clk 0:02:00]} 20. Ne5 {[%clk 0:01:44]}  cxd4 {[%clk 0:01:58]} 21. exd4 {[%clk 0:01:44]}  Rxc3 {[%clk 0:01:59]} 22. bxc3 {[%clk 0:01:45]}  Qxc3+ {[%clk 0:01:59]} 23. Ke2 {[%clk 0:01:45]}  Nxe5 {[%clk 0:01:56]} 24. dxe5 {[%clk 0:01:43]}  Bxe5 {[%clk 0:01:56]} 25. Qe3 {[%clk 0:01:40]}  Bf4 {[%clk 0:01:54]} 26. Qxa7 {[%clk 0:01:36]}  Qd2+ {[%clk 0:01:48]} 27. Kf3 {[%clk 0:01:36]}  Qxd3+ {[%clk 0:01:49]} 28. Kg2 {[%clk 0:01:36]}  Qh3+ {[%clk 0:01:49]} 29. Kxh3 {[%clk 0:01:36]}  h5 {[%clk 0:01:46]} 30. Qd4+ {[%clk 0:01:32]}  f6 {[%clk 0:01:44]} 31. Rae1 {[%clk 0:01:23]}  Bxg4+ {[%clk 0:01:26]} 32. Rxg4 {[%clk 0:01:19]}  hxg4+ {[%clk 0:01:26]} 33. Kxg4 {[%clk 0:01:14]}  Rxh4+ {[%clk 0:01:26]} 34. Kf3 {[%clk 0:01:13]}  Rh3+ {[%clk 0:01:14]} 35. Ke2 {[%clk 0:01:08]}  Ra3 {[%clk 0:01:12]} 36. Qxd5 {[%clk 0:01:07]}  b5 {[%clk 0:01:09]} 37. Kf1 {[%clk 0:01:04]}  b4 {[%clk 0:00:59]} 38. Re7+ {[%clk 0:01:04]}  Kg6 {[%clk 0:00:43]} 39. Qe4+ {[%clk 0:01:03]}  Kh5 {[%clk 0:00:40]} 40. Rh7+ {[%clk 0:00:58]}  Kg4 {[%clk 0:00:40]} 41. Qe6+ {[%clk 0:00:56]}  f5 {[%clk 0:00:38]} 42. Qe2+ {[%clk 0:00:55]}  Rf3 {[%clk 0:00:17]} 43. Kg2 {[%clk 0:00:55]} 1-0


[Site "https://www.chess.com"]

[Event "Titled Tuesday Blitz June 27 Late 2023"]
[White "Fier, Alexandr"]
[Black "Ai, Evan"]
[WhiteFideId "2107139"]
[BlackFideId "2094770"]
[WhiteElo "2750"]
[BlackElo "2419"]
[Result "1-0"]
[Round "1"]
[TimeControl "180+2"]
[Date "2023.06.27"]
[WhiteClock "0:01:52"]
[BlackClock "0:00:28"]
[Board "75"]

1. e4 {[%clk 0:02:59]}  e5 {[%clk 0:03:00]} 2. f4 {[%clk 0:02:59]}  d5 {[%clk 0:02:59]} 3. exd5 {[%clk 0:02:58]}  Qxd5 {[%clk 0:02:56]} 4. fxe5 {[%clk 0:02:57]}  Qxe5+ {[%clk 0:02:56]} 5. Be2 {[%clk 0:02:57]}  Bg4 {[%clk 0:02:53]} 6. d4 {[%clk 0:02:56]}  Qe6 {[%clk 0:02:47]} 7. Nf3 {[%clk 0:02:55]}  Bxf3 {[%clk 0:02:44]} 8. gxf3 {[%clk 0:02:56]}  Bd6 {[%clk 0:02:44]} 9. Nc3 {[%clk 0:02:55]}  Ne7 {[%clk 0:02:42]} 10. Bg5 {[%clk 0:02:54]}  h6 {[%clk 0:02:39]} 11. Bh4 {[%clk 0:02:53]}  Nf5 {[%clk 0:02:37]} 12. Bf2 {[%clk 0:02:53]}  c6 {[%clk 0:02:33]} 13. Qd3 {[%clk 0:02:53]}  Na6 {[%clk 0:02:29]} 14. O-O-O {[%clk 0:02:51]}  Nb4 {[%clk 0:02:28]} 15. Qe4 {[%clk 0:02:51]}  Nd5 {[%clk 0:02:20]} 16. Nxd5 {[%clk 0:02:49]}  cxd5 {[%clk 0:02:20]} 17. Bb5+ {[%clk 0:02:49]}  Kf8 {[%clk 0:02:13]} 18. Qxe6 {[%clk 0:02:48]}  fxe6 {[%clk 0:02:14]} 19. Rde1 {[%clk 0:02:48]}  Kf7 {[%clk 0:02:14]} 20. Bd7 {[%clk 0:02:48]}  Rad8 {[%clk 0:01:58]} 21. Bxe6+ {[%clk 0:02:48]}  Kf6 {[%clk 0:01:58]} 22. Bxf5 {[%clk 0:02:43]}  Kxf5 {[%clk 0:01:59]} 23. Bg3 {[%clk 0:02:42]}  Bf4+ {[%clk 0:01:55]} 24. Kd1 {[%clk 0:02:37]}  Rhe8 {[%clk 0:01:50]} 25. Rxe8 {[%clk 0:02:22]}  Rxe8 {[%clk 0:01:51]} 26. Re1 {[%clk 0:02:22]}  Rxe1+ {[%clk 0:01:40]} 27. Kxe1 {[%clk 0:02:23]}  Be3 {[%clk 0:01:24]} 28. Bf2 {[%clk 0:02:23]}  Bf4 {[%clk 0:01:22]} 29. h3 {[%clk 0:02:22]}  g5 {[%clk 0:01:22]} 30. Ke2 {[%clk 0:02:22]}  h5 {[%clk 0:01:21]} 31. b3 {[%clk 0:02:13]}  Bd6 {[%clk 0:01:12]} 32. c4 {[%clk 0:02:12]}  dxc4 {[%clk 0:01:06]} 33. bxc4 {[%clk 0:02:12]}  b6 {[%clk 0:01:05]} 34. c5 {[%clk 0:02:10]}  bxc5 {[%clk 0:01:06]} 35. dxc5 {[%clk 0:02:10]}  Bc7 {[%clk 0:01:07]} 36. c6 {[%clk 0:02:11]}  a6 {[%clk 0:01:07]} 37. Be3 {[%clk 0:02:09]}  g4 {[%clk 0:01:07]} 38. fxg4+ {[%clk 0:02:07]}  hxg4 {[%clk 0:01:08]} 39. h4 {[%clk 0:02:08]}  g3 {[%clk 0:01:04]} 40. Kf3 {[%clk 0:02:07]}  Ke6 {[%clk 0:01:02]} 41. h5 {[%clk 0:02:01]}  Kd5 {[%clk 0:01:02]} 42. h6 {[%clk 0:02:01]}  Be5 {[%clk 0:00:49]} 43. Bf4 {[%clk 0:02:02]}  Bxf4 {[%clk 0:00:49]} 44. h7 {[%clk 0:02:02]}  g2 {[%clk 0:00:35]} 45. Kxg2 {[%clk 0:01:57]}  Kxc6 {[%clk 0:00:35]} 46. h8=Q {[%clk 0:01:57]}  Kb5 {[%clk 0:00:35]} 47. Qe8+ {[%clk 0:01:54]}  Kb6 {[%clk 0:00:34]} 48. Qe6+ {[%clk 0:01:53]}  Kb7 {[%clk 0:00:32]} 49. Qd7+ {[%clk 0:01:51]}  Bc7 {[%clk 0:00:30]} 50. Kf3 {[%clk 0:01:52]}  Kb6 {[%clk 0:00:30]} 51. Ke4 {[%clk 0:01:53]}  a5 {[%clk 0:00:30]} 52. Kd5 {[%clk 0:01:54]}  Bf4 {[%clk 0:00:28]} 53. a4 {[%clk 0:01:52]} 1-0


[Site "https://www.chess.com"]

[Event "Titled Tuesday Blitz June 27 Late 2023"]
[White "i_like_explosions"]
[Black "Santos Ruiz, Miguel"]
[BlackFideId "22291482"]
[WhiteElo "2418"]
[BlackElo "2747"]
[Result "0-1"]
[Round "1"]
[TimeControl "180+2"]
[Date "2023.06.27"]
[WhiteClock "0:00:03"]
[BlackClock "0:00:10"]
[Board "76"]

1. d4 {[%clk 0:02:59]}  Nf6 {[%clk 0:02:59]} 2. Bg5 {[%clk 0:02:59]}  c5 {[%clk 0:02:55]} 3. d5 {[%clk 0:02:58]}  d6 {[%clk 0:02:47]} 4. c4 {[%clk 0:02:57]}  h6 {[%clk 0:02:44]} 5. Bxf6 {[%clk 0:02:55]}  exf6 {[%clk 0:02:41]} 6. Nc3 {[%clk 0:02:56]}  g6 {[%clk 0:02:40]} 7. Nf3 {[%clk 0:02:55]}  f5 {[%clk 0:02:36]} 8. e3 {[%clk 0:02:55]}  Bg7 {[%clk 0:02:36]} 9. Be2 {[%clk 0:02:55]}  O-O {[%clk 0:02:36]} 10. O-O {[%clk 0:02:56]}  Re8 {[%clk 0:02:36]} 11. Qc2 {[%clk 0:02:55]}  Nd7 {[%clk 0:02:35]} 12. Rab1 {[%clk 0:02:55]}  Nf6 {[%clk 0:02:33]} 13. a3 {[%clk 0:02:54]}  Ne4 {[%clk 0:02:27]} 14. Nxe4 {[%clk 0:02:54]}  fxe4 {[%clk 0:02:28]} 15. Nd2 {[%clk 0:02:54]}  Bf5 {[%clk 0:02:27]} 16. b4 {[%clk 0:02:53]}  b6 {[%clk 0:02:21]} 17. bxc5 {[%clk 0:02:52]}  dxc5 {[%clk 0:02:14]} 18. a4 {[%clk 0:02:38]}  Be5 {[%clk 0:02:07]} 19. Rfd1 {[%clk 0:02:13]}  h5 {[%clk 0:02:01]} 20. Nf1 {[%clk 0:02:11]}  h4 {[%clk 0:02:00]} 21. Rd2 {[%clk 0:01:56]}  a5 {[%clk 0:01:39]} 22. Qd1 {[%clk 0:01:51]}  Qd6 {[%clk 0:01:35]} 23. Bg4 {[%clk 0:01:47]}  Bxg4 {[%clk 0:01:07]} 24. Qxg4 {[%clk 0:01:48]}  Bf6 {[%clk 0:01:07]} 25. Ra2 {[%clk 0:01:21]}  Bd8 {[%clk 0:01:01]} 26. Rd1 {[%clk 0:01:16]}  f5 {[%clk 0:00:59]} 27. Qe2 {[%clk 0:01:11]}  Bc7 {[%clk 0:00:54]} 28. g3 {[%clk 0:01:07]}  Re7 {[%clk 0:00:53]} 29. Kg2 {[%clk 0:00:37]}  Rf8 {[%clk 0:00:51]} 30. f4 {[%clk 0:00:32]}  exf3+ {[%clk 0:00:50]} 31. Qxf3 {[%clk 0:00:32]}  Rfe8 {[%clk 0:00:49]} 32. Rc2 {[%clk 0:00:25]}  Re4 {[%clk 0:00:47]} 33. gxh4 {[%clk 0:00:21]}  Rxh4 {[%clk 0:00:46]} 34. Ng3 {[%clk 0:00:20]}  Ree4 {[%clk 0:00:44]} 35. Rdc1 {[%clk 0:00:18]}  Reg4 {[%clk 0:00:40]} 36. Qf2 {[%clk 0:00:10]}  Rxh2+ {[%clk 0:00:24]} 37. Kxh2 {[%clk 0:00:10]}  Qf6 {[%clk 0:00:24]} 38. Rg1 {[%clk 0:00:04]}  Qh4+ {[%clk 0:00:22]} 39. Kg2 {[%clk 0:00:05]}  Bxg3 {[%clk 0:00:21]} 40. Qf3 {[%clk 0:00:03]}  Qh2+ {[%clk 0:00:20]} 41. Kf1 {[%clk 0:00:03]}  Qxc2 {[%clk 0:00:19]} 42. Rxg3 {[%clk 0:00:04]}  Qxc4+ {[%clk 0:00:19]} 43. Kg2 {[%clk 0:00:03]}  Qc2+ {[%clk 0:00:16]} 44. Kh3 {[%clk 0:00:03]}  Rxg3+ {[%clk 0:00:14]} 45. Kxg3 {[%clk 0:00:04]}  Kf7 {[%clk 0:00:11]} 46. Qf4 {[%clk 0:00:05]}  Qe4 {[%clk 0:00:11]} 47. Qxe4 {[%clk 0:00:04]}  fxe4 {[%clk 0:00:10]} 48. Kf4 {[%clk 0:00:05]}  g5+ {[%clk 0:00:07]} 49. Kxe4 {[%clk 0:00:03]}  g4 {[%clk 0:00:05]} 50. Kf4 {[%clk 0:00:04]}  c4 {[%clk 0:00:06]} 51. e4 {[%clk 0:00:02]}  c3 {[%clk 0:00:06]} 52. Ke3 {[%clk 0:00:03]}  g3 {[%clk 0:00:06]} 53. e5 {[%clk 0:00:03]}  g2 {[%clk 0:00:07]} 54. Kf2 {[%clk 0:00:04]}  c2 {[%clk 0:00:07]} 55. Kxg2 {[%clk 0:00:04]}  c1=Q {[%clk 0:00:07]} 56. Kf3 {[%clk 0:00:05]}  Qd2 {[%clk 0:00:07]} 57. Ke4 {[%clk 0:00:05]}  Qb4+ {[%clk 0:00:08]} 58. Kf5 {[%clk 0:00:05]}  Qb1+ {[%clk 0:00:08]} 59. Kf4 {[%clk 0:00:05]}  Qd3 {[%clk 0:00:09]} 60. d6 {[%clk 0:00:03]}  Ke6 {[%clk 0:00:10]} 0-1


[Site "https://www.chess.com"]

[Event "Titled Tuesday Blitz June 27 Late 2023"]
[White "Matinian, Nikita"]
[Black "Ladan, Nicholas"]
[WhiteFideId "24129100"]
[BlackFideId "30918855"]
[WhiteElo "2745"]
[BlackElo "2415"]
[Result "1-0"]
[Round "1"]
[TimeControl "180+2"]
[Date "2023.06.27"]
[WhiteClock "0:01:11"]
[BlackClock "0:00:03"]
[Board "77"]

1. e4 {[%clk 0:02:59]}  e5 {[%clk 0:02:58]} 2. Nf3 {[%clk 0:02:59]}  Nc6 {[%clk 0:02:59]} 3. Bb5 {[%clk 0:02:58]}  a6 {[%clk 0:02:58]} 4. Ba4 {[%clk 0:02:58]}  Bc5 {[%clk 0:02:58]} 5. c3 {[%clk 0:02:57]}  Nge7 {[%clk 0:02:57]} 6. d4 {[%clk 0:02:56]}  exd4 {[%clk 0:02:58]} 7. cxd4 {[%clk 0:02:57]}  Bb4+ {[%clk 0:02:58]} 8. Bd2 {[%clk 0:02:58]}  Bxd2+ {[%clk 0:02:58]} 9. Nbxd2 {[%clk 0:02:58]}  d5 {[%clk 0:02:59]} 10. e5 {[%clk 0:02:57]}  O-O {[%clk 0:02:55]} 11. O-O {[%clk 0:02:57]}  f6 {[%clk 0:02:54]} 12. h3 {[%clk 0:02:49]}  fxe5 {[%clk 0:02:39]} 13. dxe5 {[%clk 0:02:50]}  Ng6 {[%clk 0:02:39]} 14. Re1 {[%clk 0:02:48]}  Nf4 {[%clk 0:02:27]} 15. Bxc6 {[%clk 0:02:43]}  bxc6 {[%clk 0:02:27]} 16. Nf1 {[%clk 0:02:43]}  Rb8 {[%clk 0:02:16]} 17. b3 {[%clk 0:02:42]}  Qe8 {[%clk 0:02:16]} 18. Ng3 {[%clk 0:02:40]}  Qf7 {[%clk 0:01:49]} 19. Rc1 {[%clk 0:02:37]}  Rb6 {[%clk 0:01:14]} 20. Re3 {[%clk 0:02:35]}  h6 {[%clk 0:01:06]} 21. Qd2 {[%clk 0:02:14]}  a5 {[%clk 0:00:45]} 22. Qxa5 {[%clk 0:02:07]}  Ra6 {[%clk 0:00:45]} 23. Qd2 {[%clk 0:02:06]}  Qg6 {[%clk 0:00:32]} 24. e6 {[%clk 0:01:52]}  Nxe6 {[%clk 0:00:25]} 25. Ne5 {[%clk 0:01:52]}  Qf6 {[%clk 0:00:20]} 26. Nxc6 {[%clk 0:01:50]}  d4 {[%clk 0:00:19]} 27. Rf3 {[%clk 0:01:49]}  Nf4 {[%clk 0:00:14]} 28. Rxf4 {[%clk 0:01:45]}  Qxf4 {[%clk 0:00:12]} 29. Ne7+ {[%clk 0:01:44]}  Kh8 {[%clk 0:00:10]} 30. Qxf4 {[%clk 0:01:43]}  Rxf4 {[%clk 0:00:11]} 31. Nxc8 {[%clk 0:01:43]}  Rxa2 {[%clk 0:00:08]} 32. f3 {[%clk 0:01:41]}  d3 {[%clk 0:00:08]} 33. Ne7 {[%clk 0:01:38]}  d2 {[%clk 0:00:04]} 34. Rd1 {[%clk 0:01:38]}  Rd4 {[%clk 0:00:02]} 35. Ng6+ {[%clk 0:01:20]}  Kh7 {[%clk 0:00:03]} 36. Ne5 {[%clk 0:01:21]}  Rc2 {[%clk 0:00:02]} 37. Kf2 {[%clk 0:01:21]}  Rc1 {[%clk 0:00:02]} 38. Ke2 {[%clk 0:01:22]}  Rxd1 {[%clk 0:00:03]} 39. Kxd1 {[%clk 0:01:22]}  Rd5 {[%clk 0:00:03]} 40. f4 {[%clk 0:01:22]}  Rb5 {[%clk 0:00:03]} 41. Kxd2 {[%clk 0:01:16]}  Rxb3 {[%clk 0:00:04]} 42. Ne2 {[%clk 0:01:17]}  Rb4 {[%clk 0:00:03]} 43. Nd3 {[%clk 0:01:17]}  Ra4 {[%clk 0:00:03]} 44. g4 {[%clk 0:01:16]}  g5 {[%clk 0:00:03]} 45. f5 {[%clk 0:01:16]}  Kg7 {[%clk 0:00:04]} 46. Ke3 {[%clk 0:01:15]}  Ra3 {[%clk 0:00:04]} 47. Nd4 {[%clk 0:01:14]}  Kf6 {[%clk 0:00:04]} 48. Ke4 {[%clk 0:01:13]}  Ra4 {[%clk 0:00:04]} 49. Nc5 {[%clk 0:01:12]}  Ra1 {[%clk 0:00:05]} 50. Nd7+ {[%clk 0:01:13]}  Ke7 {[%clk 0:00:03]} 51. Ne5 {[%clk 0:01:13]}  Re1+ {[%clk 0:00:03]} 52. Kd5 {[%clk 0:01:13]}  Rh1 {[%clk 0:00:04]} 53. Ndc6+ {[%clk 0:01:10]}  Kf6 {[%clk 0:00:04]} 54. Nd7+ {[%clk 0:01:10]}  Kf7 {[%clk 0:00:05]} 55. Nce5+ {[%clk 0:01:10]}  Ke8 {[%clk 0:00:03]} 56. f6 {[%clk 0:01:11]}  Rxh3 {[%clk 0:00:03]} 57. f7+ {[%clk 0:01:11]}  Ke7 {[%clk 0:00:03]} 58. f8=Q# {[%clk 0:01:11]} 1-0


[Site "https://www.chess.com"]

[Event "Titled Tuesday Blitz June 27 Late 2023"]
[White "Nunez V, Gustavo Eduardo"]
[Black "Bryakin, Mikhail"]
[WhiteFideId "4403690"]
[BlackFideId "4165314"]
[WhiteElo "2414"]
[BlackElo "2745"]
[Result "0-1"]
[Round "1"]
[TimeControl "180+2"]
[Date "2023.06.27"]
[WhiteClock "0:01:22"]
[BlackClock "0:00:03"]
[Board "78"]

1. e4 {[%clk 0:03:00]}  Nf6 {[%clk 0:02:48]} 2. Nc3 {[%clk 0:03:00]}  d5 {[%clk 0:02:44]} 3. exd5 {[%clk 0:03:01]}  Nxd5 {[%clk 0:02:44]} 4. Bc4 {[%clk 0:03:01]}  Nb6 {[%clk 0:02:42]} 5. Bb3 {[%clk 0:02:54]}  Nc6 {[%clk 0:02:42]} 6. Nf3 {[%clk 0:02:51]}  Bf5 {[%clk 0:02:42]} 7. g4 {[%clk 0:02:45]}  Bg6 {[%clk 0:02:37]} 8. h4 {[%clk 0:02:44]}  h5 {[%clk 0:02:37]} 9. Ng5 {[%clk 0:02:40]}  Nd4 {[%clk 0:02:31]} 10. d3 {[%clk 0:02:32]}  Nxb3 {[%clk 0:02:26]} 11. axb3 {[%clk 0:02:33]}  Qd7 {[%clk 0:02:14]} 12. Qf3 {[%clk 0:02:24]}  c6 {[%clk 0:02:06]} 13. gxh5 {[%clk 0:02:16]}  Bxh5 {[%clk 0:02:06]} 14. Qg3 {[%clk 0:02:16]}  e6 {[%clk 0:02:03]} 15. Bf4 {[%clk 0:02:16]}  Nd5 {[%clk 0:02:02]} 16. Nce4 {[%clk 0:02:10]}  Nxf4 {[%clk 0:02:00]} 17. Qxf4 {[%clk 0:02:11]}  f6 {[%clk 0:01:55]} 18. Nf3 {[%clk 0:01:44]}  e5 {[%clk 0:01:47]} 19. Nxe5 {[%clk 0:01:35]}  fxe5 {[%clk 0:01:42]} 20. Qxe5+ {[%clk 0:01:36]}  Qe7 {[%clk 0:01:40]} 21. Qf5 {[%clk 0:01:33]}  g6 {[%clk 0:01:33]} 22. Qh3 {[%clk 0:01:29]}  Bg7 {[%clk 0:01:33]} 23. c3 {[%clk 0:01:21]}  O-O {[%clk 0:01:32]} 24. Kd2 {[%clk 0:01:17]}  Rf3 {[%clk 0:01:31]} 25. Qg2 {[%clk 0:01:15]}  Rd8 {[%clk 0:01:31]} 26. Qxf3 {[%clk 0:01:09]}  Bxf3 {[%clk 0:01:30]} 27. Rhe1 {[%clk 0:01:10]}  Bxe4 {[%clk 0:01:30]} 28. Ra4 {[%clk 0:01:08]}  Rxd3+ {[%clk 0:01:29]} 29. Kc1 {[%clk 0:01:09]}  Bh6+ {[%clk 0:01:28]} 30. f4 {[%clk 0:01:07]}  Bxf4+ {[%clk 0:01:28]} 31. Kb1 {[%clk 0:01:08]}  Re3+ {[%clk 0:01:28]} 32. Ka2 {[%clk 0:01:08]}  Rxe1 {[%clk 0:01:28]} 33. Rxa7 {[%clk 0:01:08]}  Bb1+ {[%clk 0:01:27]} 34. Ka1 {[%clk 0:01:07]}  Bf5+ {[%clk 0:01:23]} 35. Ka2 {[%clk 0:01:08]}  Bb8 {[%clk 0:01:22]} 36. Ra8 {[%clk 0:01:07]}  Qc7 {[%clk 0:01:23]} 37. b4 {[%clk 0:01:05]}  b6 {[%clk 0:01:23]} 38. c4 {[%clk 0:01:04]}  Qb7 {[%clk 0:01:23]} 39. Ra3 {[%clk 0:01:04]}  c5 {[%clk 0:01:24]} 40. b5 {[%clk 0:01:04]}  Be6 {[%clk 0:01:24]} 41. Rc3 {[%clk 0:01:03]}  Qe4 {[%clk 0:01:23]} 42. Ka3 {[%clk 0:01:02]}  Qxh4 {[%clk 0:01:23]} 43. Re3 {[%clk 0:01:01]}  Rxe3+ {[%clk 0:01:22]} 44. b3 {[%clk 0:01:01]}  Rxb3+ {[%clk 0:01:22]} 45. Ka2 {[%clk 0:01:01]}  Qxc4 {[%clk 0:01:21]} 46. Ka1 {[%clk 0:01:02]}  g5 {[%clk 0:01:21]} 47. Ka2 {[%clk 0:01:03]}  g4 {[%clk 0:01:21]} 48. Ka1 {[%clk 0:01:04]}  g3 {[%clk 0:01:22]} 49. Ka2 {[%clk 0:01:05]}  g2 {[%clk 0:01:23]} 50. Ka1 {[%clk 0:01:05]}  Kg7 {[%clk 0:01:23]} 51. Ka2 {[%clk 0:01:06]}  Kg6 {[%clk 0:01:24]} 52. Ka1 {[%clk 0:01:07]}  Kg5 {[%clk 0:01:24]} 53. Ka2 {[%clk 0:01:07]}  Kg4 {[%clk 0:01:25]} 54. Ka1 {[%clk 0:01:08]}  Kg3 {[%clk 0:01:26]} 55. Ka2 {[%clk 0:01:09]}  Rxb5+ {[%clk 0:01:22]} 56. Ka1 {[%clk 0:01:10]}  Rb1+ {[%clk 0:01:20]} 57. Kxb1 {[%clk 0:01:10]}  Qc1+ {[%clk 0:01:20]} 58. Kxc1 {[%clk 0:01:10]}  g1=Q+ {[%clk 0:01:20]} 59. Kc2 {[%clk 0:01:10]}  Qe3 {[%clk 0:01:20]} 60. Kb2 {[%clk 0:01:11]}  Bh3 {[%clk 0:01:21]} 61. Kc2 {[%clk 0:01:11]}  Kg4 {[%clk 0:01:21]} 62. Kb2 {[%clk 0:01:12]}  Bh2 {[%clk 0:01:21]} 63. Kc2 {[%clk 0:01:13]}  Kf5 {[%clk 0:01:22]} 64. Kb2 {[%clk 0:01:14]}  Ke4 {[%clk 0:01:22]} 65. Kc2 {[%clk 0:01:15]}  b5 {[%clk 0:01:23]} 66. Kb2 {[%clk 0:01:16]}  b4 {[%clk 0:01:23]} 67. Kc2 {[%clk 0:01:17]}  c4 {[%clk 0:01:24]} 68. Kb2 {[%clk 0:01:18]}  Qe2+ {[%clk 0:01:19]} 69. Kc1 {[%clk 0:01:17]}  c3 {[%clk 0:01:18]} 70. Kb1 {[%clk 0:01:18]}  b3 {[%clk 0:01:18]} 71. Kc1 {[%clk 0:01:19]}  Kd5 {[%clk 0:01:18]} 72. Kb1 {[%clk 0:01:20]}  Kc6 {[%clk 0:01:19]} 73. Kc1 {[%clk 0:01:21]}  Kb7 {[%clk 0:01:19]} 74. Kb1 {[%clk 0:01:22]}  Qb2# {[%clk 0:00:03]} 0-1


[Site "https://www.chess.com"]

[Event "Titled Tuesday Blitz June 27 Late 2023"]
[White "Tiglon, Bryce"]
[Black "Dzierzak, Radoslaw"]
[WhiteFideId "2087456"]
[BlackFideId "1161407"]
[WhiteElo "2738"]
[BlackElo "2409"]
[Result "1-0"]
[Round "1"]
[TimeControl "180+2"]
[Date "2023.06.27"]
[WhiteClock "0:01:12"]
[BlackClock "0:00:03"]
[Board "79"]

1. Nf3 {[%clk 0:03:00]}  Nf6 {[%clk 0:02:59]} 2. e3 {[%clk 0:03:00]}  e6 {[%clk 0:02:58]} 3. d4 {[%clk 0:03:01]}  d5 {[%clk 0:02:59]} 4. b3 {[%clk 0:02:57]}  Be7 {[%clk 0:02:50]} 5. Bb2 {[%clk 0:02:57]}  O-O {[%clk 0:02:51]} 6. Bd3 {[%clk 0:02:56]}  b6 {[%clk 0:02:45]} 7. Nbd2 {[%clk 0:02:51]}  Bb7 {[%clk 0:02:44]} 8. O-O {[%clk 0:02:50]}  Nbd7 {[%clk 0:02:41]} 9. Ne5 {[%clk 0:02:47]}  Nxe5 {[%clk 0:02:34]} 10. dxe5 {[%clk 0:02:48]}  Ne4 {[%clk 0:02:34]} 11. Nf3 {[%clk 0:02:34]}  f5 {[%clk 0:01:58]} 12. c4 {[%clk 0:02:22]}  Qe8 {[%clk 0:01:37]} 13. Nd4 {[%clk 0:02:10]}  Qg6 {[%clk 0:01:36]} 14. f3 {[%clk 0:02:01]}  Ng5 {[%clk 0:01:28]} 15. cxd5 {[%clk 0:01:42]}  Bxd5 {[%clk 0:01:26]} 16. Nb5 {[%clk 0:01:43]}  Rfc8 {[%clk 0:01:14]} 17. Rc1 {[%clk 0:01:38]}  c6 {[%clk 0:01:11]} 18. Nc3 {[%clk 0:01:34]}  Bc5 {[%clk 0:00:59]} 19. Qe2 {[%clk 0:01:32]}  Rd8 {[%clk 0:00:24]} 20. Kh1 {[%clk 0:01:30]}  Qh6 {[%clk 0:00:19]} 21. e4 {[%clk 0:01:22]}  fxe4 {[%clk 0:00:09]} 22. fxe4 {[%clk 0:01:22]}  Bxe4 {[%clk 0:00:06]} 23. Nxe4 {[%clk 0:01:19]}  Nxe4 {[%clk 0:00:06]} 24. Qxe4 {[%clk 0:01:18]}  g6 {[%clk 0:00:03]} 25. Qxc6 {[%clk 0:01:12]} 1-0


[Site "https://www.chess.com"]